bitfinex/quotes_SOLUSD_20260105
["timestamp","ask_amount","ask_price","bid_price","bid_amount"]
[1767614148964,0.69369569,135.63,135.61,0.69885874]
[1767614149273,0.69369569,135.63,135.59,10.29798155]
[1767614149274,0.69369569,135.63,135.6,0.69885874]
[1767614149460,10.98969946,135.63,135.6,0.69885874]
[1767614149959,0.69369569,135.62,135.59,0.69885874]
[1767614150654,3.61665942,135.6,135.56,0.69885874]
[1767614150857,17.05665942,135.6,135.56,0.69885874]
[1767614151474,14.13369569,135.6,135.56,0.69885874]
[1767614151667,17.05665942,135.6,135.56,0.69885874]
[1767614154178,14.13369569,135.6,135.56,0.69885874]
[1767614154476,14.13369569,135.6,135.56,8.0755391]
[1767614154658,14.13369569,135.6,135.57,0.71647281]
[1767614156076,24.43140335,135.6,135.57,0.71647281]
[1767614156374,0.71001428,135.59,135.56,0.71647281]
[1767614156553,8.08475821,135.6,135.57,0.71647281]
[1767614156971,0.71001428,135.6,135.57,0.71647281]
[1767614159279,0.71001428,135.6,135.57,8.09271924]
[1767614159883,8.08434644,135.61,135.58,0.71647281]
[1767614161881,3.58510062,135.63,135.59,0.72072854]
[1767614162276,0.66213689,135.62,135.59,0.72072854]
[1767614165362,0.66213689,135.63,135.6,0.72072854]
[1767614166479,0.66213689,135.64,135.61,0.72072854]
[1767614167088,0.66213689,135.64,135.61,3.64369227]
[1767614167585,0.66213689,135.64,135.61,11.01774852]
[1767614168185,0.66213689,135.65,135.62,0.72072854]
[1767614169988,10.95705972,135.65,135.62,0.72072854]
[1767614172406,0.66213689,135.64,135.62,0.72072854]
[1767614175193,13.44,135.66,135.6,11.93861677]
[1767614175194,5.22637876,135.63,135.6,0.72072854]
[1767614178998,12.59978224,135.63,135.6,0.72072854]
[1767614179494,0.66213689,135.61,135.59,0.72072854]
[1767614180486,5.22637876,135.62,135.59,0.72072854]
[1767614180799,0.66213689,135.61,135.58,8.09639133]
[1767614181599,18.66637876,135.62,135.59,0.72072854]
[1767614182186,14.10213689,135.62,135.59,0.72072854]
[1767614182784,18.66637876,135.62,135.59,0.72072854]
[1767614184201,26.03992993,135.62,135.59,0.72072854]
[1767614184404,0.66213689,135.61,135.57,0.72072854]
[1767614184583,5.22637876,135.6,135.57,0.72072854]
[1767614184784,0.66213689,135.59,135.56,8.09750917]
[1767614184979,0.66213689,135.59,135.56,7.37678063]
[1767614188503,0.66213689,135.59,135.56,0.72072854]
[1767614190094,5.22637876,135.58,135.55,0.72072854]
[1767614190407,0.66213689,135.57,135.52,37.17168615]
[1767614190900,0.65708853,135.56,135.52,37.17168615]
[1767614191080,0.59708854,135.56,135.53,0.7063079]
[1767614191691,0.59708854,135.56,135.53,8.08445203]
[1767614195108,7.97414664,135.56,135.53,0.7063079]
[1767614195314,18.6613304,135.55,135.52,0.7063079]
[1767614195611,14.09708853,135.55,135.52,0.7063079]
[1767614195927,4.56424187,135.54,135.51,0.7063079]
[1767614196409,4.56424187,135.52,135.49,0.7063079]
[1767614196585,18.00424187,135.51,135.47,0.7063079]
[1767614196986,7.37952918,135.51,135.47,0.7063079]
[1767614197186,11.94377105,135.51,135.47,0.7063079]
[1767614197608,30.39259401,135.51,135.47,0.7063079]
[1767614197913,0.65708853,135.5,135.46,5.27054977]
[1767614199588,0.65708853,135.5,135.46,0.7063079]
[1767614199789,0.65708853,135.5,135.46,5.27054977]
[1767614199790,0.65708853,135.49,135.46,5.27054977]
[1767614200195,14.09708853,135.49,135.46,5.27054977]
[1767614201714,0.65708853,135.49,135.46,5.27054977]
[1767614201920,0.65708853,135.49,135.46,0.7063079]
[1767614202401,0.65708853,135.49,135.46,5.27054977]
[1767614202897,8.03774523,135.49,135.46,0.7063079]
[1767614203098,8.03774523,135.49,135.45,12.65321619]
[1767614203303,14.11708853,135.49,135.46,5.27054977]
[1767614204615,14.11708853,135.49,135.46,0.7063079]
[1767614204817,14.11708853,135.49,135.46,5.27054977]
[1767614205317,14.11708853,135.49,135.46,0.7063079]
[1767614205608,14.11708853,135.49,135.46,5.27054977]
[1767614205809,14.11708853,135.51,135.48,5.27054977]
[1767614206820,14.11708853,135.51,135.48,0.7063079]
[1767614207715,21.49664263,135.51,135.48,0.7063079]
[1767614213313,26.0608845,135.51,135.48,0.7063079]
[1767614215210,0.68748401,135.5,135.48,0.7063079]
[1767614216518,0.68748401,135.5,135.47,0.7224201]
[1767614221418,0.72476954,135.49,135.47,0.7224201]
[1767614223520,8.10516287,135.5,135.47,0.7224201]
[1767614232641,0.72476954,135.53,135.5,0.71423762]
[1767614232825,0.72476954,135.53,135.5,5.24847953]
[1767614233135,20.83789582,135.54,135.5,5.24847953]
[1767614233136,21.56266536,135.54,135.5,4.56424187]
[1767614233506,8.10266536,135.54,135.5,4.56424187]
[1767614233810,21.56266536,135.54,135.5,4.56424187]
[1767614234015,14.18476954,135.54,135.51,4.56424187]
[1767614234437,0.72476954,135.55,135.52,4.56424187]
[1767614235434,0.72476954,135.55,135.52,5.27847949]
[1767614235807,21.56191682,135.56,135.53,0.71423762]
[1767614236029,21.56191682,135.56,135.53,0.68679545]
[1767614237018,0.72476954,135.55,135.52,2.92466931]
[1767614237330,0.72476954,135.55,135.52,2.06530963]
[1767614237530,0.72476954,135.55,135.52,7.37888893]
[1767614237723,0.72476954,135.55,135.54,2.92466931]
[1767614237903,0.72476954,135.55,135.53,2.92466931]
[1767614239003,0.72476954,135.55,135.54,2.92466931]
[1767614239207,13.46,135.57,135.54,2.92466931]
[1767614241361,20.83630927,135.57,135.54,2.92466931]
[1767614242428,20.83630927,135.57,135.54,3.63890693]
[1767614243331,20.83630927,135.57,135.55,0.71423762]
[1767614243531,20.83630927,135.57,135.55,0.68679563]
[1767614249329,20.83630927,135.57,135.54,0.71423762]
[1767614251828,20.83630927,135.57,135.55,0.65420191]
[1767614253049,7.37571913,135.58,135.55,0.65420191]
[1767614253250,7.37571913,135.58,135.56,0.65420191]
[1767614254520,7.37571913,135.58,135.56,0.62562045]
[1767614257741,25.70003353,135.59,135.57,0.65420191]
[1767614263230,25.70003353,135.59,135.56,0.65420191]
[1767614263445,25.70003353,135.59,135.55,0.65420191]
[1767614265255,28.62470284,135.59,135.55,0.65420191]
[1767614265838,2.92466931,135.58,135.54,0.65420191]
[1767614266154,2.92466931,135.56,135.53,0.65420191]
[1767614267037,16.36466931,135.57,135.53,0.65420191]
[1767614268863,16.36466931,135.57,135.54,0.65420191]
[1767614269039,13.44,135.57,135.54,0.65420191]
[1767614270456,20.81633362,135.57,135.54,0.65420191]
[1767614271738,23.74100293,135.57,135.53,7.3783318]
[1767614271938,23.74100293,135.57,135.53,8.06467806]
[1767614272662,20.81633362,135.57,135.53,8.06467806]
[1767614272845,23.74100293,135.57,135.53,8.06467806]
[1767614273255,20.81633362,135.57,135.53,8.06467806]
[1767614273450,20.81633362,135.57,135.53,10.98934737]
[1767614273850,20.81633362,135.57,135.53,8.06467806]
[1767614275665,20.81633362,135.57,135.54,0.68634626]
[1767614275842,7.37599489,135.58,135.55,0.68634626]
[1767614283361,10.3006642,135.58,135.54,0.66394656]
[1767614285358,7.37599489,135.58,135.54,0.66394656]
[1767614296960,7.37599489,135.58,135.55,0.66394656]
[1767614297761,25.40401626,135.59,135.55,0.66394656]
[1767614297960,5.52092101,135.58,135.55,0.66394656]
[1767614298174,25.40401626,135.59,135.55,0.66394656]
[1767614298384,5.52107326,135.58,135.55,0.66394656]
[1767614298571,25.40401626,135.59,135.55,0.66394656]
[1767614298761,5.52101051,135.58,135.55,0.66394656]
[1767614298970,25.40401626,135.59,135.55,0.66394656]
[1767614299169,5.52100687,135.58,135.55,0.66394656]
[1767614299378,25.40401626,135.59,135.55,0.66394656]
[1767614299577,5.52115953,135.58,135.55,0.66394656]
[1767614299876,25.40401626,135.59,135.55,0.66394656]
[1767614300184,12.89690967,135.58,135.55,0.66394656]
[1767614300485,7.37574899,135.58,135.55,0.66394656]
[1767614305879,25.40401027,135.59,135.55,0.66394656]
[1767614306564,25.40401027,135.59,135.56,0.66394656]
[1767614306565,18.02856928,135.59,135.56,0.66394656]
[1767614306766,13.46,135.59,135.56,0.66394656]
[1767614306964,4.56856928,135.57,135.53,0.66394656]
[1767614308196,4.56856928,135.57,135.54,0.66394656]
[1767614308908,11.94484339,135.57,135.54,0.66394656]
[1767614312291,7.37571913,135.58,135.54,0.66394656]
[1767614312465,10.08992943,135.57,135.54,0.66394656]
[1767614312668,4.56856928,135.57,135.54,0.66394656]
[1767614313879,11.94492652,135.57,135.54,0.66394656]
[1767614318078,7.37635724,135.57,135.54,0.66394656]
[1767614318386,11.94492652,135.57,135.54,0.66394656]
[1767614318587,7.37635724,135.57,135.54,0.66394656]
[1767614318891,11.94492652,135.57,135.54,0.66394656]
[1767614321897,7.37635724,135.57,135.54,0.66394656]
[1767614324901,25.40402825,135.59,135.55,0.72276874]
[1767614325097,5.52042603,135.58,135.55,0.72276874]
[1767614325302,5.52042603,135.57,135.55,0.72276874]
[1767614325503,25.40402825,135.59,135.55,0.72276874]
[1767614325704,5.5204918,135.58,135.55,0.72276874]
[1767614325898,5.5204918,135.57,135.55,0.72276874]
[1767614326096,25.40402825,135.59,135.55,0.72276874]
[1767614326293,10.08939547,135.58,135.55,0.72276874]
[1767614326599,5.52082619,135.57,135.55,0.72276874]
[1767614326780,4.56856928,135.58,135.55,0.72276874]
[1767614326981,5.52082734,135.57,135.55,0.72276874]
[1767614327181,4.56856928,135.58,135.55,0.72276874]
[1767614327407,5.52119937,135.57,135.55,0.72276874]
[1767614327613,4.56856928,135.58,135.55,0.72276874]
[1767614327788,5.52120301,135.57,135.55,0.72276874]
[1767614328102,4.56856928,135.58,135.55,0.72276874]
[1767614328281,5.52162237,135.57,135.55,0.72276874]
[1767614328477,11.94454513,135.58,135.55,0.72276874]
[1767614328706,5.52162237,135.57,135.55,0.72276874]
[1767614328909,11.94454513,135.58,135.55,0.72276874]
[1767614329201,5.52162352,135.57,135.55,0.72276874]
[1767614329382,11.94454513,135.58,135.55,0.72276874]
[1767614329581,5.52162234,135.57,135.55,0.72276874]
[1767614329782,11.94454513,135.58,135.55,0.72276874]
[1767614330007,5.52162234,135.57,135.55,0.72276874]
[1767614330206,11.94454513,135.58,135.55,0.72276874]
[1767614330407,5.52162615,135.57,135.55,0.72276874]
[1767614330705,11.94454513,135.58,135.55,0.72276874]
[1767614330911,5.5216262,135.57,135.55,0.72276874]
[1767614331084,7.37587062,135.58,135.55,0.72276874]
[1767614331283,5.52156755,135.57,135.55,0.72276874]
[1767614331495,7.37587062,135.58,135.55,0.72276874]
[1767614331694,5.52163164,135.57,135.55,0.72276874]
[1767614331989,7.37587062,135.58,135.55,0.72276874]
[1767614332191,5.52163279,135.57,135.55,0.72276874]
[1767614332505,7.37587062,135.58,135.55,0.72276874]
[1767614332710,5.52164268,135.57,135.55,0.72276874]
[1767614332900,7.37587062,135.58,135.55,0.72276874]
[1767614333102,5.52164268,135.57,135.55,0.72276874]
[1767614333400,7.37587062,135.58,135.55,0.72276874]
[1767614333593,5.52165474,135.57,135.55,0.72276874]
[1767614333797,7.37587062,135.58,135.55,0.72276874]
[1767614334105,5.52165589,135.57,135.55,0.72276874]
[1767614334411,7.37587062,135.58,135.55,0.72276874]
[1767614334594,5.52167193,135.57,135.55,0.72276874]
[1767614334795,7.37587062,135.58,135.55,0.72276874]
[1767614337910,11.9444399,135.58,135.53,0.69785457]
[1767614338209,5.52140505,135.57,135.53,0.69785457]
[1767614338510,20.81587062,135.58,135.55,0.69785457]
[1767614338688,5.5216938,135.57,135.55,0.69785457]
[1767614338892,7.37587062,135.58,135.55,0.69785457]
[1767614339093,13.44,135.58,135.55,0.69785457]
[1767614339598,13.44,135.58,135.56,0.69785457]
[1767614341003,7.37474603,135.6,135.56,0.69785457]
[1767614341205,5.52102915,135.59,135.56,0.69785457]
[1767614341385,20.81474603,135.6,135.56,0.69785457]
[1767614341585,5.52061885,135.59,135.56,0.69785457]
[1767614341812,20.81474603,135.6,135.56,0.69785457]
[1767614341996,12.89582133,135.59,135.56,0.69785457]
[1767614342196,7.37520248,135.59,135.56,0.69785457]
[1767614343012,20.81520248,135.59,135.56,0.69785457]
[1767614352799,13.44,135.59,135.56,0.69785457]
[1767614371926,13.44,135.59,135.57,0.69331422]
[1767614374625,13.44,135.59,135.58,0.69331422]
[1767614375228,23.73764107,135.61,135.58,0.69331422]
[1767614375426,5.51801426,135.6,135.58,0.69331422]
[1767614375633,20.81432189,135.61,135.58,0.69331422]
[1767614375835,5.51801426,135.6,135.58,0.69331422]
[1767614376136,20.81432189,135.61,135.58,0.69331422]
[1767614376323,5.51832715,135.6,135.58,0.69331422]
[1767614376523,20.81432189,135.61,135.58,0.69331422]
[1767614376726,5.51832715,135.6,135.58,0.69331422]
[1767614376918,20.81432189,135.61,135.58,0.69331422]
[1767614377118,5.51832715,135.6,135.58,0.69331422]
[1767614377418,23.73764107,135.61,135.58,0.69331422]
[1767614377624,5.51870811,135.6,135.58,0.69331422]
[1767614377826,23.73764107,135.61,135.58,0.69331422]
[1767614378124,5.51870811,135.6,135.58,0.69331422]
[1767614378327,23.73764107,135.61,135.58,0.69331422]
[1767614378638,5.51916981,135.6,135.58,0.69331422]
[1767614378840,2.92331918,135.6,135.56,0.69331422]
[1767614380551,2.92331918,135.59,135.56,0.69331422]
[1767614380719,7.37487298,135.6,135.56,0.69331422]
[1767614380920,2.92331918,135.59,135.56,0.69331422]
[1767614381481,2.92331918,135.59,135.54,7.37768093]
[1767614381747,2.92331918,135.59,135.55,0.69331422]
[1767614382157,2.92331918,135.59,135.55,8.07059098]
[1767614382838,2.92331918,135.59,135.56,0.69331422]
[1767614387249,7.37487298,135.6,135.56,0.69331422]
[1767614387550,5.52295055,135.59,135.56,0.69331422]
[1767614387755,10.29819216,135.6,135.56,0.69331422]
[1767614387963,5.52295055,135.59,135.56,0.69331422]
[1767614388263,10.29819216,135.6,135.56,0.69331422]
[1767614388435,5.52296178,135.59,135.56,0.69331422]
[1767614388640,10.29819216,135.6,135.56,0.69331422]
[1767614388850,5.52296063,135.59,135.56,0.69331422]
[1767614389041,10.29819216,135.6,135.56,0.69331422]
[1767614389261,5.52296178,135.59,135.56,0.69331422]
[1767614389569,10.29819216,135.6,135.56,0.69331422]
[1767614389865,5.52298031,135.59,135.56,0.69331422]
[1767614390041,10.29819216,135.6,135.56,0.69331422]
[1767614390240,5.52300624,135.59,135.56,0.69331422]
[1767614390447,10.29819216,135.6,135.56,0.69331422]
[1767614390648,5.52300739,135.59,135.56,0.69331422]
[1767614390841,10.29819216,135.6,135.56,0.69331422]
[1767614391041,5.52300611,135.59,135.56,0.69331422]
[1767614391244,10.29819216,135.6,135.56,0.69331422]
[1767614391455,5.52304291,135.59,135.56,0.69331422]
[1767614391655,10.29819216,135.6,135.56,0.69331422]
[1767614391863,5.52304406,135.59,135.56,0.69331422]
[1767614392056,2.92331918,135.6,135.57,0.66979897]
[1767614392242,5.52308292,135.59,135.57,0.66979897]
[1767614392442,2.92331918,135.6,135.57,0.66979897]
[1767614392667,5.52307881,135.59,135.57,0.66979897]
[1767614392862,2.92331918,135.6,135.57,0.66979897]
[1767614393060,5.52307996,135.59,135.57,0.66979897]
[1767614393262,23.73765336,135.61,135.57,0.66979897]
[1767614393448,5.52312603,135.6,135.57,0.66979897]
[1767614393651,5.52312603,135.59,135.57,0.66979897]
[1767614393971,23.73765336,135.61,135.57,0.66979897]
[1767614394172,5.52312832,135.6,135.57,0.66979897]
[1767614394469,5.52312832,135.59,135.57,0.66979897]
[1767614394652,23.73765336,135.61,135.57,0.66979897]
[1767614394950,5.52318348,135.6,135.57,0.66979897]
[1767614395152,5.52318348,135.59,135.57,0.66979897]
[1767614395365,23.73765336,135.61,135.57,0.66979897]
[1767614395545,5.52325473,135.6,135.57,0.66979897]
[1767614395745,5.52325473,135.59,135.57,0.66979897]
[1767614395970,23.73765336,135.61,135.57,0.66979897]
[1767614396163,5.52325243,135.6,135.57,0.66979897]
[1767614396350,5.52325243,135.59,135.57,0.66979897]
[1767614396548,23.73765336,135.61,135.57,0.66979897]
[1767614396742,5.52323165,135.6,135.57,0.66979897]
[1767614396941,5.52323165,135.59,135.57,0.66979897]
[1767614397158,23.73765336,135.61,135.57,0.66979897]
[1767614397358,5.52321114,135.6,135.57,0.66979897]
[1767614397567,5.52321114,135.59,135.57,0.66979897]
[1767614397746,23.73765336,135.61,135.57,0.66979897]
[1767614397946,8.44653032,135.6,135.57,0.66979897]
[1767614398173,5.52321114,135.59,135.57,0.66979897]
[1767614398353,2.92331918,135.6,135.57,0.66979897]
[1767614398652,5.52319046,135.59,135.57,0.66979897]
[1767614398952,2.92331918,135.6,135.57,0.66979897]
[1767614399152,5.52319046,135.59,135.57,0.66979897]
[1767614399469,2.92331918,135.6,135.57,0.66979897]
[1767614399662,5.52327671,135.59,135.57,0.66979897]
[1767614399845,2.92331918,135.6,135.57,0.66979897]
[1767614400052,5.52327671,135.59,135.57,0.66979897]
[1767614400248,20.81433418,135.61,135.57,0.66979897]
[1767614400472,5.52319617,135.6,135.58,0.66979897]
[1767614400670,23.73765336,135.61,135.58,0.66979897]
[1767614400869,5.52293071,135.6,135.58,0.66979897]
[1767614401173,13.44,135.61,135.58,0.66979897]
[1767614401377,5.52231411,135.6,135.58,0.66979897]
[1767614401667,16.36331918,135.61,135.58,0.66979897]
[1767614401870,5.5223141,135.6,135.58,0.66979897]
[1767614402072,13.44,135.61,135.58,0.66979897]
[1767614402374,5.52238437,135.6,135.58,0.66979897]
[1767614402573,2.92331918,135.6,135.58,0.66979897]
[1767614402868,20.81415064,135.61,135.58,0.66979897]
[1767614403178,5.52193886,135.6,135.58,0.66979897]
[1767614403353,23.73746982,135.61,135.58,0.66979897]
[1767614403554,5.52169828,135.6,135.58,0.66979897]
[1767614403862,23.73746982,135.61,135.57,0.67161285]
[1767614404166,5.52169828,135.6,135.56,10.97147141]
[1767614404362,23.73746982,135.61,135.56,10.97147141]
[1767614404557,5.52151632,135.6,135.56,10.97147141]
[1767614404754,23.73746982,135.61,135.56,8.04815223]
[1767614405064,5.52151747,135.6,135.56,8.04815223]
[1767614405266,23.73746982,135.61,135.56,8.04815223]
[1767614405454,5.52138507,135.6,135.56,8.04815223]
[1767614405772,2.92331918,135.6,135.56,8.04815223]
[1767614407170,2.92331918,135.6,135.57,0.67161285]
[1767614409076,20.81415064,135.61,135.57,0.67161285]
[1767614409269,5.52161366,135.6,135.57,0.67161285]
[1767614409468,23.73746982,135.61,135.57,0.67161285]
[1767614409669,5.52145719,135.6,135.57,0.67161285]
[1767614409966,23.73746982,135.61,135.57,0.67161285]
[1767614410265,5.52145604,135.6,135.57,0.67161285]
[1767614410575,2.92331918,135.6,135.57,0.67161285]
[1767614410764,2.92331918,135.58,135.56,0.67161285]
[1767614411160,2.92331918,135.59,135.56,0.67161285]
[1767614411664,10.29817396,135.6,135.56,0.67161285]
[1767614411863,8.44546113,135.59,135.56,0.67161285]
[1767614412062,2.92331918,135.59,135.56,0.67161285]
[1767614412663,18.43311569,135.63,135.57,0.67161285]
[1767614412876,2.92331918,135.6,135.57,0.67161285]
[1767614413075,5.52215252,135.59,135.57,0.67161285]
[1767614413278,2.92331918,135.6,135.57,0.67161285]
[1767614413452,5.52216172,135.59,135.57,0.67161285]
[1767614413654,2.92331918,135.6,135.57,0.67161285]
[1767614413854,5.52216354,135.59,135.57,0.67161285]
[1767614414072,2.92331918,135.6,135.57,0.67161285]
[1767614414272,5.52210142,135.59,135.57,0.67161285]
[1767614414578,2.92331918,135.6,135.57,0.67161285]
[1767614414764,5.52203236,135.59,135.57,0.67161285]
[1767614414965,7.3736807,135.62,135.59,0.67161285]
[1767614415263,5.52176748,135.61,135.59,0.67161285]
[1767614415463,7.37323716,135.63,135.59,0.67161285]
[1767614415783,5.52006925,135.62,135.59,0.67161285]
[1767614416077,10.29655634,135.63,135.59,0.67161285]
[1767614416277,5.51999686,135.62,135.59,0.67161285]
[1767614416487,10.29655634,135.63,135.59,0.67161285]
[1767614416674,104.28102345,135.65,135.59,10.29842761]
[1767614416875,0.72259205,135.61,135.57,0.73762631]
[1767614417066,0.72259205,135.61,135.55,18.44285208]
[1767614417067,0.60259207,135.6,135.55,21.36617126]
[1767614417265,2.92331918,135.6,135.56,0.67161285]
[1767614417467,2.92331918,135.6,135.56,8.0483681]
[1767614417770,2.92331918,135.59,135.56,7.37675525]
[1767614418282,2.92331918,135.6,135.56,7.37675525]
[1767614418478,2.92331918,135.59,135.55,7.3771201]
[1767614418675,4.56802867,135.59,135.55,7.3771201]
[1767614419261,0.72259205,135.58,135.55,7.3771201]
[1767614419753,0.72259205,135.59,135.56,8.04825821]
[1767614419955,0.66259206,135.59,135.56,8.04825821]
[1767614426384,0.54259208,135.59,135.56,8.04825821]
[1767614426885,7.3743614,135.61,135.57,0.67161285]
[1767614427101,11.94239007,135.61,135.57,0.67161285]
[1767614428381,0.72259205,135.6,135.57,0.67161285]
[1767614428884,0.72259205,135.62,135.59,0.67161285]
[1767614429372,12.66276443,135.65,135.6,0.67161285]
[1767614429574,6.2387667,135.64,135.6,0.67161285]
[1767614429776,0.72259205,135.64,135.6,0.67161285]
[1767614430178,5.29062072,135.64,135.6,0.67161285]
[1767614430584,0.68858046,135.62,135.59,0.69082624]
[1767614430788,5.25660913,135.62,135.59,0.69082624]
[1767614431093,5.25660913,135.62,135.58,8.06630699]
[1767614434893,0.68858046,135.61,135.58,7.37548075]
[1767614435099,0.68858046,135.61,135.58,8.06630699]
[1767614436094,5.25660913,135.61,135.58,0.69082624]
[1767614436401,0.68858046,135.61,135.58,0.69082624]
[1767614436597,5.25660913,135.59,135.54,4.56802867]
[1767614436776,18.00802867,135.6,135.56,0.69082624]
[1767614436981,4.56802867,135.6,135.56,0.69082624]
[1767614437307,11.94277199,135.6,135.56,0.69082624]
[1767614437490,4.56802867,135.58,135.56,0.69082624]
[1767614438674,5.25660913,135.59,135.56,0.69082624]
[1767614441202,5.25660913,135.57,135.54,8.06852343]
[1767614441405,0.68858046,135.57,135.54,8.06852343]
[1767614441698,0.68858046,135.55,135.52,0.69082624]
[1767614441899,13.44,135.58,135.51,0.69082624]
[1767614441900,4.56802867,135.54,135.51,0.69082624]
[1767614442077,4.56802867,135.55,135.51,8.07030841]
[1767614443694,11.94542199,135.55,135.51,8.07030841]
[1767614443905,5.25660913,135.55,135.51,8.07030841]
[1767614444705,0.68858046,135.54,135.51,8.07030841]
[1767614445203,5.25660913,135.54,135.51,0.69082624]
[1767614447003,5.22915923,135.54,135.51,0.69082624]
[1767614448090,0.62858047,135.54,135.51,0.69082624]
[1767614448292,5.19660914,135.54,135.51,0.69082624]
[1767614449410,5.19660914,135.54,135.46,0.69082624]
[1767614449411,4.56802867,135.52,135.46,0.69082624]
[1767614449620,7.37794546,135.54,135.46,0.69082624]
[1767614449621,4.56802867,135.51,135.46,0.69082624]
[1767614449801,25.38729783,135.52,135.47,8.07221934]
[1767614450111,0.68858046,135.51,135.47,8.07221934]
[1767614451002,0.68858046,135.49,135.46,0.69082624]
[1767614451203,11.94770409,135.51,135.46,0.69082624]
[1767614451528,0.68858046,135.5,135.46,0.69082624]
[1767614452289,0.68858046,135.5,135.47,0.70725096]
[1767614452485,0.72138566,135.51,135.47,0.70725096]
[1767614453290,0.72138566,135.51,135.46,11.94975899]
[1767614453291,13.44,135.52,135.49,0.70725096]
[1767614453897,0.72138566,135.53,135.49,0.70725096]
[1767614454203,0.72138566,135.53,135.5,0.70725096]
[1767614454610,5.28941433,135.53,135.5,0.70725096]
[1767614455095,0.72138566,135.53,135.5,0.70725096]
[1767614460520,0.72138566,135.53,135.49,8.08767206]
[1767614461013,5.28941433,135.53,135.49,8.08767206]
[1767614461228,0.69619119,135.52,135.49,8.08767206]
[1767614462815,0.69619119,135.56,135.52,0.67899663]
[1767614463021,0.69619119,135.56,135.51,5.2470253]
[1767614463321,0.69619119,135.56,135.52,0.67899663]
[1767614463911,0.69619119,135.56,135.52,8.05794888]
[1767614464301,0.69619119,135.57,135.54,0.67899663]
[1767614465207,0.69619119,135.58,135.55,5.2470253]
[1767614465530,0.69619119,135.59,135.56,5.2470253]
[1767614466028,0.69619119,135.59,135.56,0.67899663]
[1767614466557,5.27384439,135.6,135.57,0.67899663]
[1767614466826,5.97003558,135.6,135.57,0.67899663]
[1767614467514,5.97003558,135.6,135.57,0.6515488]
[1767614467907,5.97003558,135.6,135.57,8.02770606]
[1767614468823,5.27384439,135.6,135.57,11.94418593]
[1767614469520,5.27384439,135.6,135.57,12.62318256]
[1767614470919,5.27384439,135.6,135.57,8.05515389]
[1767614471216,5.27384439,135.6,135.58,0.67899663]
[1767614471932,0.69619119,135.61,135.58,0.67899663]
[1767614472114,0.69619119,135.6,135.56,8.05556246]
[1767614472727,0.69619119,135.6,135.57,8.05522021]
[1767614473531,4.56802867,135.61,135.58,0.67899663]
[1767614473714,0.69619119,135.61,135.57,11.94425225]
[1767614473913,0.69619119,135.61,135.57,7.37622358]
[1767614474121,0.69619119,135.61,135.57,8.05522021]
[1767614475134,0.69619119,135.6,135.57,8.05522021]
[1767614475517,0.69619119,135.61,135.57,8.05522021]
[1767614476336,0.69619119,135.61,135.57,12.62324888]
[1767614476711,0.69619119,135.61,135.58,0.67899663]
[1767614476936,0.69619119,135.62,135.58,5.2470253]
[1767614477937,0.69619119,135.62,135.58,8.05436733]
[1767614478439,0.69619119,135.61,135.57,0.67899663]
[1767614479235,3.61941727,135.61,135.57,0.67899663]
[1767614479431,0.69619119,135.6,135.57,0.67899663]
[1767614479828,0.69619119,135.6,135.57,8.05497088]
[1767614481447,0.69619119,135.6,135.57,0.67899663]
[1767614482436,0.69619119,135.59,135.55,7.37720131]
[1767614482638,0.69619119,135.58,135.55,8.05619794]
[1767614484653,0.69619119,135.58,135.55,0.67899663]
[1767614484816,0.69619119,135.56,135.53,0.67899663]
[1767614486146,0.69619119,135.56,135.53,8.05737073]
[1767614486345,0.69619119,135.56,135.53,0.67899663]
[1767614486554,0.69619119,135.56,135.52,0.67899663]
[1767614486931,3.61941727,135.56,135.52,8.05798042]
[1767614491028,8.07309448,135.56,135.52,8.05798042]
[1767614491239,0.66538093,135.55,135.52,8.05798042]
[1767614491422,0.63793291,135.55,135.52,8.05798042]
[1767614492841,0.63793291,135.55,135.51,8.07353161]
[1767614493229,0.63793291,135.55,135.52,0.69400243]
[1767614493230,10.93853783,135.55,135.52,0.69400243]
[1767614493549,0.66538093,135.54,135.51,0.69400243]
[1767614493742,3.52860702,135.54,135.51,0.69400243]
[1767614494645,2.92322608,135.54,135.5,21.51381282]
[1767614494851,2.92322608,135.54,135.5,14.13400243]
[1767614495149,7.37737884,135.55,135.5,8.07402146]
[1767614495343,2.92322608,135.54,135.5,8.07402146]
[1767614495649,3.58860701,135.51,135.48,0.69400243]
[1767614495829,3.46860703,135.51,135.48,0.69400243]
[1767614496025,3.58860701,135.51,135.48,8.07510883]
[1767614496333,3.58860701,135.52,135.49,0.69400243]
[1767614496726,0.66538093,135.52,135.49,8.07459731]
[1767614496927,0.66538093,135.53,135.5,8.07393305]
[1767614497127,17.02860701,135.54,135.51,0.69400243]
[1767614497630,0.66538093,135.54,135.51,0.69400243]
[1767614497829,0.66538093,135.55,135.51,0.69400243]
[1767614498038,24.40569093,135.56,135.51,0.69400243]
[1767614498345,24.40569093,135.56,135.52,0.69400243]
[1767614498753,14.10538093,135.56,135.52,0.69400243]
[1767614499150,14.10538093,135.56,135.52,8.07278765]
[1767614500058,24.40544759,135.56,135.52,8.07278765]
[1767614500239,0.66538093,135.55,135.52,8.07278765]
[1767614502259,0.66538093,135.55,135.52,0.69400243]
[1767614502558,0.66538093,135.55,135.52,8.07295863]
[1767614505337,0.66538093,135.52,135.48,8.07479086]